bitfinex/quotes_ETHUSD_20260306
["timestamp","ask_amount","ask_price","bid_price","bid_amount"]
[1772801782675,1.57703741,2052.1,2051.0,1.26938627]
[1772801784093,1.57703741,2052.1,2051.0,0.05046867]
[1772801784476,1.21832358,2052.0,2051.0,0.05046867]
[1772801784690,1.57703741,2051.7,2051.0,0.05046867]
[1772801785080,2.48743457,2051.8,2051.0,1.26936642]
[1772801785278,2.68155014,2053.1,2051.1,1.52084012]
[1772801785483,1.57703741,2052.2,2051.1,1.52084012]
[1772801785984,1.57703741,2052.2,2051.2,0.0011]
[1772801787010,2.79530162,2052.1,2051.2,1.21989875]
[1772801787708,2.79530162,2052.1,2051.2,2.74073887]
[1772801789728,1.21826421,2052.1,2051.3,1.52084012]
[1772801791679,2.73820276,2052.1,2051.3,1.52084012]
[1772801791884,1.51993855,2052.0,2051.2,0.0011]
[1772801792989,1.51993855,2052.0,2051.2,1.2198884]
[1772801793190,1.51993855,2052.0,2051.2,2.76663539]
[1772801793792,1.21838296,2051.9,2051.2,2.76663539]
[1772801795320,1.21838296,2051.9,2051.2,1.54784699]
[1772801795521,1.21838296,2051.9,2051.2,0.0011]
[1772801795824,1.51993855,2051.8,2051.2,0.0011]
[1772801796197,1.21850173,2051.7,2051.2,0.0011]
[1772801796711,2.73820276,2052.1,2051.2,1.54784699]
[1772801797795,1.51993855,2051.8,2051.2,0.0011]
[1772801798312,1.21850173,2051.7,2051.2,0.0011]
[1772801798703,1.21850173,2051.7,2051.4,0.0011]
[1772801801510,2.73826213,2052.0,2051.4,0.0011]
[1772801801715,1.51993855,2051.9,2051.4,0.0011]
[1772801802522,1.21844234,2051.8,2051.4,0.0011]
[1772801803724,2.73838089,2051.8,2051.2,0.0011]
[1772801805223,1.21844234,2051.8,2051.2,1.54784699]
[1772801805426,4.87352028,2052.0,2051.2,1.54784699]
[1772801806141,1.51993855,2052.3,2051.2,1.54784699]
[1772801806504,1.21820485,2052.2,2051.4,1.54674699]
[1772801808736,6.39186228,2052.6,2051.6,1.54674699]
[1772801810035,1.51993855,2052.5,2051.6,1.54674699]
[1772801810854,1.51993855,2052.5,2051.3,4.87448208]
[1772801810855,1.51993855,2052.3,2051.2,2.76661757]
[1772801811138,1.51993855,2052.3,2051.3,1.54674699]
[1772801812739,1.51993855,2052.3,2051.6,0.0011]
[1772801812938,1.51993855,2052.1,2051.6,0.0011]
[1772801813325,1.21820485,2052.2,2051.6,0.0011]
[1772801814451,1.21820485,2052.2,2051.6,1.48522463]
[1772801814954,4.87381941,2052.3,2051.6,2.70377294]
[1772801815537,4.87381941,2052.3,2051.7,1.48412463]
[1772801817861,6.33736795,2052.3,2051.6,0.0011]
[1772801818028,1.46354854,2052.2,2051.6,0.0011]
[1772801819858,1.21826421,2052.1,2051.6,0.0011]
[1772801820065,2.68181275,2052.1,2051.6,0.0011]
[1772801821463,2.68181275,2052.1,2051.2,0.0011]
[1772801821464,1.46354854,2052.0,2051.2,0.0011]
[1772801822056,1.46354854,2052.0,2050.9,1.26637315]
[1772801822057,1.55975419,2051.8,2050.9,0.04741503]
[1772801822671,1.55975419,2051.8,2050.9,1.26638893]
[1772801823079,1.55975419,2051.8,2050.9,2.75223441]
[1772801823968,1.55975419,2051.8,2051.0,1.48584548]
[1772801824253,1.21850173,2051.7,2051.0,1.48584548]
[1772801824473,1.55975419,2051.6,2050.9,1.26635847]
[1772801824658,1.55975419,2051.6,2050.9,0.04741503]
[1772801824859,1.55975419,2051.6,2050.9,1.26637968]
[1772801825588,1.55975419,2051.6,2050.9,1.26637587]
[1772801825884,1.55975419,2051.6,2051.4,0.0011]
[1772801826262,2.77837471,2051.5,2051.4,0.0011]
[1772801826793,1.21850173,2051.7,2051.4,0.0011]
[1772801828656,1.55975419,2051.7,2051.4,0.0011]
[1772801831396,1.21856112,2051.6,2051.4,0.0011]
[1772801831886,2.77831531,2051.6,2051.1,0.0011]
[1772801832288,1.55975419,2051.5,2051.1,0.0011]
[1772801832492,4.87377686,2051.8,2051.2,1.48584548]
[1772801832493,6.43366376,2051.8,2051.2,1.48584548]
[1772801832894,1.21840914,2051.9,2051.2,1.48584548]
[1772801833095,1.21935319,2052.0,2051.2,1.48584548]
[1772801833393,0.001,2052.0,2051.4,1.48584548]
[1772801836288,0.001,2052.0,2051.5,1.21862052]
[1772801836469,1.56075419,2052.0,2051.2,1.48584548]
[1772801836668,1.56075419,2052.0,2051.3,1.21870193]
[1772801836971,1.56075419,2052.0,2051.1,1.2199283]
[1772801837392,1.56075419,2052.0,2051.1,2.70577378]
[1772801838265,1.55975419,2051.9,2051.2,1.48584548]
[1772801839277,1.21935488,2052.0,2051.2,1.48584548]
[1772801840388,0.001,2052.0,2051.4,1.48584548]
[1772801840592,0.001,2052.0,2051.4,1.48694548]
[1772801840797,0.001,2051.8,2051.4,1.48694548]
[1772801841697,0.001,2052.0,2051.4,1.48694548]
[1772801842195,1.56075419,2052.0,2051.4,1.48694548]
[1772801842503,1.55975419,2051.8,2051.4,0.0011]
[1772801844517,1.21838296,2051.9,2051.4,0.0011]
[1772801845599,2.77813715,2051.9,2051.4,0.0011]
[1772801845794,1.55975419,2051.8,2051.4,0.0011]
[1772801846807,1.21850173,2051.7,2051.4,0.0011]
[1772801848581,1.55975419,2051.6,2051.4,0.0011]
[1772801848785,1.55975419,2051.6,2051.1,0.0011]
[1772801848994,1.21862052,2051.5,2051.1,0.0011]
[1772801849697,2.77837471,2051.5,2051.1,0.0011]
[1772801850003,1.55975419,2051.4,2051.1,0.0011]
[1772801850596,1.55975419,2051.4,2050.9,0.04851503]
[1772801850796,1.55975419,2051.4,2050.7,0.0011]
[1772801851003,1.55975419,2051.2,2050.7,0.0011]
[1772801853415,1.21885817,2051.1,2050.7,0.0011]
[1772801853614,1.21882121,2051.2,2050.8,1.41685118]
[1772801853848,1.21872378,2051.4,2050.8,1.41685118]
[1772801854716,1.42070519,2051.3,2050.7,0.0011]
[1772801855607,1.21879875,2051.2,2050.7,0.0011]
[1772801856937,2.63950394,2051.2,2050.7,0.0011]
[1772801857145,1.42070519,2051.1,2050.7,0.0011]
[1772801857738,1.2189176,2051.0,2050.7,0.0011]
[1772801862257,2.63962279,2051.0,2050.7,0.0011]
[1772801862429,1.42070519,2050.9,2050.7,0.0011]
[1772801864153,2.63974166,2050.8,2050.7,0.0011]
[1772801865463,2.63974166,2050.8,2050.5,0.0011]
[1772801865973,1.42070519,2050.7,2050.5,0.0011]
[1772801866554,2.63986055,2050.6,2050.5,0.0011]
[1772801867155,1.21915536,2050.6,2050.5,0.0011]
[1772801868546,4.87647119,2050.7,2050.5,0.0011]
[1772801868748,1.42070519,2051.1,2050.5,0.0011]
[1772801869547,1.42070519,2051.1,2049.5,1.41685118]
[1772801870356,1.42070519,2050.9,2049.5,1.41685118]
[1772801870731,1.42070519,2050.7,2049.7,1.41685118]
[1772801871357,2.63972285,2050.9,2049.7,1.41685118]
[1772801871654,1.42070519,2050.9,2049.7,1.41685118]
[1772801871859,2.63952314,2051.2,2049.7,1.41685118]
[1772801872034,2.63951336,2051.2,2049.7,1.41685118]
[1772801872233,1.42070519,2051.5,2049.9,1.41685118]
[1772801872747,2.63938511,2051.4,2050.1,1.41685118]
[1772801873265,1.42070519,2051.3,2050.1,1.41685118]
[1772801874679,1.21879875,2051.2,2050.2,1.21939322]
[1772801874879,1.37542035,2051.2,2050.3,1.41385276]
[1772801875252,1.21877986,2051.3,2050.3,1.41385276]
[1772801875450,2.59420021,2051.3,2050.3,1.41385276]
[1772801877052,2.59420021,2051.3,2050.5,1.41385276]
[1772801877782,1.37542035,2051.2,2050.5,1.41385276]
[1772801878990,1.21885817,2051.1,2050.6,1.21915536]
[1772801879155,2.59427852,2051.1,2050.6,1.41385276]
[1772801879357,1.37542035,2051.5,2050.2,1.28009706]
[1772801880977,1.37542035,2051.5,2050.5,0.0011]
[1772801881187,1.37542035,2051.5,2050.5,1.2883328]
[1772801881188,1.37542035,2051.3,2050.5,1.2883328]
[1772801881480,1.37642035,2051.0,2050.5,1.2883328]
[1772801881782,1.37642035,2051.0,2050.5,0.0011]
[1772801883203,1.35582393,2050.8,2050.5,0.0011]
[1772801885307,1.35582393,2050.7,2050.5,0.0011]
[1772801887701,2.57497929,2050.6,2050.5,0.0011]
[1772801887906,1.35582393,2050.6,2050.5,0.0011]
[1772801888793,1.35582393,2050.6,2050.0,0.0011]
[1772801889385,1.35582393,2050.6,2050.0,1.22060835]
[1772801889596,2.57503875,2050.5,2050.0,1.22060835]
[1772801890329,1.35582393,2050.5,2050.0,1.22060835]
[1772801891028,1.35582393,2050.5,2050.0,0.0011]
[1772801891827,1.35582393,2050.7,2050.0,1.23295916]
[1772801892032,4.87591753,2050.9,2049.5,1.23185916]
[1772801892033,1.35582393,2050.6,2049.5,1.23185916]
[1772801893426,1.35582393,2050.6,2050.2,0.0011]
[1772801893826,1.21921482,2050.5,2050.2,0.0011]
[1772801894025,1.35582393,2050.4,2050.2,0.0011]
[1772801895700,2.57502264,2050.6,2050.2,0.0011]
[1772801895897,1.35582393,2050.5,2050.2,0.0011]
[1772801896298,1.2191668,2050.6,2050.2,0.0011]
[1772801896529,1.35582393,2050.7,2050.2,0.0011]
[1772801896715,2.5749387,2050.7,2050.2,1.19728727]
[1772801898126,1.35582393,2050.6,2050.2,0.0011]
[1772801898749,1.35582393,2050.6,2050.2,1.22048867]
[1772801898958,0.001,2050.9,2050.3,1.18231951]
[1772801898959,1.21998759,2050.9,2050.3,1.18231951]
[1772801899343,2.57581152,2050.9,2050.3,1.18231951]
[1772801900059,2.57581152,2050.9,2050.4,1.21927428]
[1772801901221,1.35682393,2050.9,2050.4,1.21927428]
[1772801901429,0.001,2050.9,2050.5,1.16193926]
[1772801902250,0.001,2050.9,2050.6,2.38109462]
[1772801903460,0.001,2050.9,2050.7,1.15525435]
[1772801903756,0.001,2050.9,2050.6,1.21915536]
[1772801904057,0.001,2050.9,2050.5,2.36780309]
[1772801904363,0.001,2050.9,2050.6,1.14862661]
[1772801906236,0.001,2050.7,2050.6,1.14862661]
[1772801906436,0.001,2050.7,2050.4,4.87702566]
[1772801906437,0.001,2050.7,2050.4,1.135546]
[1772801907334,0.001,2050.7,2050.3,1.21933375]
[1772801907730,1.35682393,2050.7,2050.2,0.0011]
[1772801908444,2.57497929,2050.6,2050.2,0.0011]
[1772801909758,0.001,2050.7,2050.3,1.11000254]
[1772801909922,0.001,2050.7,2050.2,1.11110254]
[1772801911030,0.001,2050.7,2050.3,2.32307555]
[1772801914638,1.23525906,2050.7,2050.2,0.0011]
[1772801915531,1.23525906,2050.7,2050.2,1.22049201]
[1772801916269,2.45441107,2050.7,2050.2,1.22049201]
[1772801916450,1.23525906,2050.7,2050.2,2.28411861]
[1772801917337,0.001,2050.7,2050.3,1.0636266]
[1772801917744,0.001,2050.5,2050.3,1.0636266]
[1772801918264,0.001,2050.5,2050.2,1.22049201]
[1772801919365,5.45435604,2050.7,2050.2,2.27240621]
[1772801920158,4.23525906,2050.7,2050.2,2.27240621]
[1772801920755,5.45435641,2050.7,2050.2,2.27240621]
[1772801921371,4.23525906,2050.7,2050.2,2.27240621]
[1772801922270,5.45437745,2050.7,2050.2,2.27240621]
[1772801922671,4.23525906,2050.7,2050.2,2.27240621]
[1772801922872,5.45435551,2050.7,2050.2,2.27240621]
[1772801923072,4.23525906,2050.7,2050.2,2.27240621]
[1772801923266,3.001,2050.7,2050.3,1.02906154]
[1772801923582,3.001,2050.7,2049.0,8.81812393]
[1772801923751,3.001,2050.7,2048.4,0.03119988]
[1772801923752,1.23425906,2049.4,2048.5,1.02345026]
[1772801924055,1.23425906,2049.2,2048.5,1.02345026]
[1772801924443,2.33383074,2049.7,2048.5,1.02345026]
[1772801924444,1.23425906,2049.5,2048.5,1.02345026]
[1772801924644,5.36745066,2049.4,2048.6,1.2203456]
[1772801924845,2.9132638,2049.3,2048.6,2.5391552]
[1772801925047,2.9132638,2049.2,2048.6,2.5391552]
[1772801925246,2.45418686,2049.4,2048.6,2.5391552]
[1772801925460,2.91025807,2049.3,2048.6,2.5391552]
[1772801925747,2.45418686,2049.4,2048.6,2.5391552]
[1772801925958,2.91025807,2049.3,2048.6,2.5391552]
[1772801926274,2.45418686,2049.4,2048.6,2.5391552]
[1772801926475,2.90747548,2049.3,2048.6,2.5391552]
[1772801926678,2.45418686,2049.4,2048.6,2.5391552]
[1772801926977,5.36168079,2049.3,2048.6,2.5391552]
[1772801927185,2.45420531,2049.3,2048.6,2.5391552]
[1772801929582,2.45420531,2049.3,2048.8,0.0011]
[1772801929971,1.23425906,2049.2,2048.8,0.0011]
[1772801931280,1.23425906,2049.0,2048.8,0.0011]
[1772801933464,1.23425906,2049.4,2048.8,0.0011]
[1772801936100,1.41690638,2049.2,2048.8,0.0011]
[1772801938573,2.63689661,2049.2,2048.8,0.0011]
[1772801940303,1.41690638,2049.2,2048.8,0.0011]
[1772801940876,1.44621264,2048.8,2048.7,2.47751609]
[1772801941077,1.41690638,2049.2,2048.7,2.47751609]
[1772801941278,2.63689632,2049.2,2048.7,2.47751609]
[1772801941479,1.41690638,2049.1,2048.6,1.22028844]
[1772801941689,1.41690638,2049.1,2048.6,2.49757411]
[1772801942106,1.41690638,2049.1,2048.8,0.0011]
[1772801943116,2.63695559,2049.1,2048.8,0.0011]
[1772801943322,1.41690638,2049.1,2048.8,0.0011]
[1772801944392,2.63695974,2049.1,2048.8,0.0011]
[1772801944596,2.63695818,2049.1,2048.8,0.0011]
[1772801945320,2.63695644,2049.1,2048.8,0.0011]
[1772801945731,1.35574968,2049.0,2048.8,0.0011]
[1772801947325,2.57585817,2049.0,2048.8,0.0011]
[1772801948132,1.35574968,2049.0,2048.8,0.0011]
[1772801948430,2.57563772,2049.4,2048.9,1.28556114]
[1772801948637,2.90145856,2049.3,2048.9,1.28556114]
[1772801948820,2.57563772,2049.4,2048.9,1.28556114]
[1772801949019,2.90145856,2049.3,2048.9,1.28556114]
[1772801949219,1.35574968,2049.3,2048.9,1.28556114]
[1772801950031,1.21998828,2049.2,2048.9,1.28556114]
[1772801950230,1.21998828,2049.2,2048.8,0.0011]
[1772801950534,2.57573796,2049.2,2048.8,0.0011]
[1772801950735,2.90633273,2049.1,2048.8,1.22132492]
[1772801951043,1.35574968,2049.1,2048.8,0.0011]
[1772801951240,2.90992222,2049.0,2048.8,0.0011]
[1772801951428,1.21998828,2049.2,2048.8,2.48186192]
[1772801951743,6.23551445,2049.3,2048.8,2.48186192]
[1772801951744,2.90992222,2049.1,2048.8,2.48186192]
[1772801952036,2.57571812,2049.3,2048.6,4.88129108]
[1772801952222,4.33137742,2049.2,2048.5,4.88268713]
[1772801952427,2.91005024,2049.1,2048.6,0.07586704]
[1772801952627,2.91005024,2049.0,2048.6,0.07586704]
[1772801952816,1.42132718,2049.2,2048.6,0.07586704]
[1772801953147,2.91455602,2049.1,2048.6,0.07586704]
[1772801953317,5.24838676,2049.0,2048.6,0.07586704]
[1772801953515,2.91455602,2048.9,2048.6,0.07586704]
[1772801953711,2.33383074,2049.0,2048.6,0.07586704]
[1772801953712,2.91455602,2048.8,2048.6,0.07586704]
[1772801953940,1.42132718,2049.1,2048.6,0.07586704]
[1772801954138,1.42132718,2049.1,2048.7,1.29313433]
[1772801954547,1.42132718,2049.1,2048.8,0.0011]
[1772801954848,0.001,2048.9,2048.8,0.0011]
[1772801955029,2.64127459,2049.3,2048.8,0.07712744]
[1772801955621,1.42132718,2049.2,2048.8,0.07712744]
[1772801958758,1.42132718,2049.2,2048.8,1.29730364]
[1772801958962,2.64132099,2049.2,2048.8,1.29730364]
[1772801959144,1.42132718,2049.2,2048.8,1.29730364]
[1772801959335,2.6413173,2049.2,2048.8,1.29730364]
[1772801960161,1.42132718,2049.2,2048.8,1.29730364]
[1772801960565,2.64132179,2049.2,2048.8,1.29730364]
[1772801960859,2.64132179,2049.2,2048.8,1.29734883]
[1772801961557,1.21999461,2049.2,2048.8,1.29734883]
[1772801961762,1.42132718,2049.1,2048.8,1.29734883]
[1772801961962,1.42132718,2049.1,2048.5,1.22149846]
[1772801962260,1.42132718,2049.4,2048.6,0.02511896]
[1772801962575,1.21992875,2049.3,2048.7,1.22028603]
[1772801962740,1.42132718,2049.2,2048.6,1.22032671]
[1772801963267,1.42132718,2049.2,2048.6,1.23841111]
[1772801963968,1.42132718,2049.2,2048.6,0.0180844]
[1772801964147,1.42132718,2049.2,2048.6,1.23842721]
[1772801964662,1.22004782,2049.1,2048.6,1.23841617]
[1772801964885,1.42132718,2049.0,2048.6,1.23841617]
[1772801965757,1.42132718,2049.0,2048.5,0.0011]
[1772801966158,1.42132718,2049.0,2048.5,1.22150314]
[1772801966455,1.42132718,2049.0,2048.8,0.0011]
[1772801966688,1.42232718,2049.0,2048.8,0.0011]
[1772801966985,1.42132718,2048.9,2048.8,0.0011]
[1772801967157,2.64249055,2049.0,2048.8,0.0011]
[1772801967684,1.42232718,2049.0,2048.8,0.0011]
[1772801967860,2.64243898,2049.0,2048.8,0.0011]
[1772801968059,1.42132718,2048.9,2048.8,0.0011]
[1772801970286,2.64149409,2048.9,2048.8,0.0011]
[1772801970489,1.42077718,2048.8,2048.5,0.0011]
[1772801972395,2.64100789,2048.8,2048.5,0.0011]
[1772801972572,1.42077718,2048.8,2048.5,0.0011]
[1772801972901,2.64100764,2048.8,2048.5,0.0011]
[1772801973101,1.42077718,2048.8,2048.5,0.0011]
[1772801973274,2.64100405,2048.8,2048.5,0.0011]
[1772801975898,2.64100828,2048.8,2048.5,0.0011]
[1772801976304,1.42077718,2048.7,2048.5,0.0011]
[1772801978303,0.001,2048.6,2048.5,0.0011]
[1772801979595,2.9989,2048.5,2048.4,1.25165694]
[1772801979802,0.001,2048.6,2048.4,1.25165694]
[1772801981414,0.001,2048.6,2048.4,0.03119988]
[1772801981715,0.001,2048.6,2048.4,1.25165874]
[1772801982418,0.001,2048.6,2048.4,0.03119988]
[1772801982593,1.42177718,2048.6,2048.4,0.03119988]
[1772801983541,1.28391034,2048.8,2048.5,1.33259447]
[1772801984014,2.50418032,2048.8,2048.5,1.33259447]
[1772801984318,1.28391034,2048.7,2048.4,1.36379435]
[1772801984515,2.50410688,2048.9,2048.5,2.55298898]
[1772801984721,1.28391034,2048.9,2048.5,2.55298898]
[1772801985022,1.28391034,2048.9,2048.6,1.33259447]
[1772801985793,1.28391034,2048.8,2048.4,1.36379435]
[1772801986010,1.28391034,2048.8,2048.5,1.33259447]
[1772801988138,1.28391034,2048.8,2048.5,2.55298472]
[1772801989527,2.50502523,2049.0,2048.6,1.33259447]
[1772801989930,1.22111489,2049.0,2048.6,1.33259447]
[1772801990144,1.28391034,2048.9,2048.6,1.33259447]
[1772801991244,2.50408132,2048.9,2048.7,0.0011]
[1772801991538,0.001,2048.6,2048.4,2.58425067]
[1772801991717,0.001,2048.6,2048.5,1.33369447]
[1772801993242,2.50407999,2048.9,2048.5,1.33369447]
[1772801993945,1.28391034,2048.8,2048.5,1.33369447]
[1772801994740,1.28391034,2048.8,2048.5,0.0011]
[1772801995110,1.28391034,2048.8,2048.3,4.88314496]
[1772801995111,1.28391034,2048.8,2048.3,1e-08]
[1772801995540,1.35949727,2048.6,2048.3,1e-08]
[1772801997242,2.57973064,2048.8,2048.3,1.33801471]
[1772801997414,0.74102608,2048.4,2048.1,0.0011]
[1772801997619,1.22050998,2048.4,2048.1,0.0011]
[1772801997935,1.35949727,2048.4,2048.1,0.0011]
[1772801998242,1.35949727,2048.7,2048.1,1.3391147]
[1772801999047,1.35949727,2048.7,2048.1,0.0011]
[1772802000323,1.35949727,2048.5,2048.1,0.0011]
[1772802001325,2.57978874,2048.7,2048.1,1.3391147]
[1772802001520,1.30388987,2048.6,2048.1,1.3391147]
[1772802002127,2.52410541,2048.9,2048.1,1.3391147]
[1772802002355,1.30388987,2048.8,2048.3,1.36795572]
[1772802004072,1.30388987,2048.8,2048.1,0.0011]
[1772802004366,1.30488987,2048.6,2048.1,0.0011]
[1772802004568,1.30488987,2048.6,2048.3,0.0011]
[1772802005770,2.52405678,2048.9,2048.3,1.36905572]
[1772802005964,2.52503479,2049.0,2048.3,1.36905572]
[1772802006373,0.001,2049.0,2048.5,1.36795572]
[1772802007169,1.22111477,2049.0,2048.5,1.36795572]
[1772802007675,2.52500464,2049.0,2048.5,1.36795572]
[1772802008582,2.52500464,2049.0,2048.5,2.58830895]
[1772802008583,1.30488987,2049.0,2048.5,2.58830895]
[1772802008875,0.001,2049.0,2048.6,1.36795572]
[1772802009050,1.22111175,2049.0,2048.6,1.36795572]
[1772802009887,0.001,2049.0,2048.6,1.36795572]
[1772802010097,1.2211096,2049.0,2048.6,1.36795572]
[1772802010572,1.30488987,2049.0,2048.6,1.36795572]
[1772802010888,1.30388987,2049.2,2048.7,1.36795572]
[1772802011092,0.001,2049.5,2048.7,1.36795572]
[1772802011386,1.30488987,2049.5,2048.7,1.36795572]
[1772802012589,1.30488987,2049.5,2048.5,1.36795572]
[1772802012792,1.30388987,2049.3,2048.4,2.58837284]
[1772802013088,1.30388987,2049.3,2048.5,1.36795572]
[1772802013790,1.30388987,2049.3,2048.3,1.22160442]
[1772802014092,1.30388987,2049.3,2048.3,2.58956014]
[1772802014293,1.30388987,2049.3,2048.4,1.36795572]
[1772802014793,0.680777,2048.8,2048.4,2.58837979]
[1772802015290,0.680777,2048.8,2048.5,1.36795572]
[1772802015782,0.06673698,2048.8,2048.6,1.36795572]
[1772802016889,0.001,2049.1,2048.8,1.36795572]
[1772802019699,0.001,2049.1,2049.0,1.36795572]
[1772802020219,0.001,2049.5,2049.0,1.36795572]
[1772802021683,0.001,2049.5,2049.2,1.36795572]
[1772802022931,1.30488987,2049.5,2049.0,2.5880273]
[1772802023113,1.30488987,2049.5,2048.8,1.36795572]
[1772802023820,1.30388987,2049.3,2048.5,1.22147398]
[1772802024118,1.21986923,2049.4,2048.6,1.36795572]
[1772802024430,1.30388987,2049.4,2048.6,1.36795572]
[1772802024942,0.001,2049.5,2048.6,1.36795572]
[1772802025150,0.29501791,2050.4,2048.6,6.39]
[1772802025313,1.30388987,2050.3,2049.0,1.36795572]
[1772802025748,1.30388987,2050.1,2049.2,1.36795572]
[1772802026089,1.30388987,2050.1,2048.8,1.22022647]
[1772802026212,1.30388987,2050.1,2048.9,1.36795572]
[1772802027637,1.30388987,2049.9,2049.0,1.22010736]
[1772802028149,1.30388987,2049.9,2048.9,2.58812113]
[1772802028324,1.30388987,2049.8,2048.9,2.58812113]
[1772802028513,1.30388987,2049.8,2048.9,1.36795572]
[1772802028712,1.30388987,2049.8,2048.9,2.58811791]
[1772802028912,1.30388987,2049.8,2049.0,1.36795572]
[1772802029237,0.001,2049.3,2049.0,1.36795572]
[1772802029816,0.001,2049.3,2049.1,1.22004782]
[1772802030144,1.21960897,2049.9,2049.3,1.36795572]
[1772802030514,2.52345057,2050.0,2049.3,1.36795572]
[1772802030914,2.52343618,2050.0,2049.3,1.36795572]
[1772802031945,2.52343618,2050.0,2049.4,1.21986923]
[1772802032467,1.32314639,2049.9,2049.3,2.58784553]
[1772802033026,1.32314639,2049.9,2049.1,1.33249488]
[1772802034258,1.32314639,2049.9,2049.3,1.33249488]
[1772802034432,2.54272809,2049.9,2049.3,1.33249488]
[1772802036140,1.21953933,2050.0,2049.3,1.33249488]
[1772802036335,2.54268572,2050.0,2049.4,1.21986923]
[1772802036959,1.21948693,2050.1,2049.5,1.33249488]
[1772802037382,0.001,2050.9,2050.1,1.21918308]
[1772802037537,0.001,2050.9,2050.3,1.33249488]
[1772802037740,1.32314639,2050.8,2050.1,1.33249488]
[1772802038435,2.54219519,2050.8,2050.2,1.21939322]
[1772802038639,1.32314639,2050.8,2050.2,1.21939322]
[1772802038839,1.32314639,2050.8,2050.2,2.5518881]
[1772802039940,1.22002252,2050.9,2050.2,2.5518881]
[1772802040145,0.001,2050.9,2050.2,2.5518881]
[1772802040468,1.21997756,2050.9,2050.2,2.5518881]
[1772802040871,2.54312395,2050.9,2050.2,2.5518881]
[1772802042364,2.54312395,2050.9,2050.2,1.21939322]
[1772802042541,2.54312395,2050.9,2050.3,1.33249488]
[1772802043167,2.54312395,2050.9,2050.3,2.55177255]
[1772802043368,1.32314639,2050.8,2049.7,1.33249488]
[1772802043563,1.32314639,2050.8,2049.8,1.33249488]
[1772802044760,1.32314639,2050.8,2049.8,1.34062119]
[1772802044956,1.32314639,2050.8,2049.8,1.33931012]
[1772802045152,1.21909591,2050.7,2050.0,1.33249488]
[1772802045348,1.21909591,2050.7,2049.8,2.5560885]
[1772802045349,1.32314639,2050.6,2049.8,2.5560885]
[1772802045667,1.32314639,2050.6,2049.8,1.33647125]
[1772802046371,1.32314639,2050.6,2049.8,2.55609893]
[1772802046866,1.32314639,2050.6,2049.8,2.55212256]
[1772802047454,2.54236121,2050.5,2049.8,2.55212256]
[1772802049469,1.32314639,2050.4,2049.6,1.33466704]
[1772802049683,1.32314639,2050.4,2049.6,0.00217216]
[1772802049994,1.32314639,2050.4,2049.5,0.0011]
[1772802051358,1.32314639,2050.2,2049.5,0.0011]
[1772802053087,1.32314639,2050.2,2049.7,0.0011]
[1772802053392,1.32314639,2050.0,2049.7,0.0011]
[1772802054371,1.2194527,2050.1,2049.7,0.0011]
[1772802054786,2.47765391,2050.1,2049.7,0.0011]
[1772802055392,1.25820121,2050.0,2049.7,0.0011]
[1772802057684,1.21957168,2049.9,2049.7,0.0011]
[1772802059694,2.47777289,2049.9,2049.7,0.0011]
[1772802060077,1.25820121,2049.8,2049.3,0.0011]
[1772802061001,1.25820121,2049.6,2049.0,0.0011]
[1772802061992,1.2198097,2049.5,2049.0,0.0011]
[1772802062290,2.47326661,2049.5,2049.0,0.0011]
[1772802063908,1.25345691,2049.4,2049.0,0.0011]
[1772802066102,1.21992875,2049.3,2049.2,0.0011]
[1772802067308,1.21991584,2049.4,2049.2,0.0011]
[1772802067479,1.21973629,2049.7,2049.2,1.23940839]
[1772802069692,3.0,2049.4,2049.2,1.23940839]
[1772802070519,3.0,2049.4,2049.3,1.23830839]
[1772802071701,3.0,2049.4,2049.2,0.0011]
[1772802071905,1.25345691,2049.3,2049.0,0.0011]
[1772802072800,4.21988407,2049.4,2049.0,0.0011]
[1772802073290,3.0,2049.4,2049.0,1.23940839]
[1772802073495,2.46829159,2049.4,2049.1,1.23830839]
[1772802074393,2.46829159,2049.4,2049.0,0.0011]
[1772802074394,1.25345691,2049.3,2049.0,0.0011]
[1772802074796,3.68816563,2049.4,2049.0,0.0011]
[1772802075224,2.46829159,2049.4,2049.1,2.45835621]
[1772802075442,2.46829159,2049.4,2049.2,1.23830839]
[1772802076938,3.68816757,2049.4,2049.0,1.23940839]
[1772802077093,4.94162448,2049.4,2049.0,0.0011]
[1772802077539,4.94162448,2049.4,2048.8,2.45961693]
[1772802077743,4.94162448,2049.4,2048.9,1.23830839]
[1772802078633,4.94162448,2049.4,2049.0,0.0011]
[1772802079158,4.94162448,2049.4,2048.8,0.0011]
[1772802079321,0.001,2049.3,2048.8,1.23940839]
[1772802080347,1.25445691,2049.3,2048.8,0.0011]
[1772802081844,1.21998828,2049.2,2048.8,0.0011]
[1772802082527,1.21998828,2049.2,2048.8,1.23940839]
[1772802083019,1.25445691,2049.3,2048.8,1.23940839]
[1772802083324,1.2209296,2049.3,2048.8,1.23940839]
[1772802084753,1.2209296,2049.3,2048.8,2.45958712]
[1772802084926,0.001,2049.3,2048.9,1.23830839]
[1772802086164,1.21975019,2049.6,2049.0,1.23830839]
[1772802086461,2.20969612,2049.7,2049.0,1.23830839]
[1772802086636,0.99,2049.7,2049.0,1.23830839]
[1772802086837,0.99,2049.7,2049.2,1.23830839]
[1772802087062,2.20969074,2049.7,2049.2,1.23830839]
[1772802087664,0.99,2049.7,2049.2,1.23830839]
[1772802087844,1.21965356,2049.8,2049.2,1.23830839]
[1772802088562,1.21954184,2050.0,2049.2,1.23830839]
[1772802088774,1.21954184,2050.0,2049.3,1.21992875]
[1772802088962,1.21954184,2050.0,2049.4,1.23830839]
[1772802089664,1.21950102,2050.1,2049.4,1.23830839]
[1772802089866,1.22033828,2050.3,2049.4,1.23830839]
[1772802090862,1.22033828,2050.3,2049.6,1.23830839]
[1772802090863,0.001,2050.3,2049.6,1.23830839]
[1772802091066,1.25445691,2050.3,2049.6,1.23830839]
[1772802091365,0.001,2050.3,2049.6,1.23830839]
[1772802092695,1.28390315,2050.3,2049.6,1.23830839]
[1772802093175,1.21939322,2050.2,2049.7,2.54294472]
[1772802093571,1.21939322,2050.2,2049.7,2.53814472]
[1772802094367,1.21939322,2050.2,2049.8,1.32325404]
[1772802095690,2.50229637,2050.2,2049.7,1.21489068]
[1772802096768,2.50229637,2050.2,2049.8,1.32325404]
[1772802097167,1.22037387,2050.3,2049.8,1.32325404]
[1772802097471,0.001,2050.3,2049.9,2.54282572]
[1772802098095,0.001,2050.3,2050.0,1.32325404]
[1772802099597,0.001,2050.3,2050.0,2.5427136]
[1772802099795,0.001,2050.3,2050.0,1.32325404]
[1772802100896,1.28390315,2050.3,2049.8,2.5428318]
[1772802102799,2.50329458,2050.3,2049.8,2.5428318]
[1772802102972,2.50329458,2050.3,2049.8,2.5439318]
[1772802103299,0.001,2050.1,2049.8,2.5439318]